Cogmind - Beta 17.1 @@@ ROGUE MODE // 2026.08.30 @ 23:35:46 Player: Trione Result: Destroyed by WH-JG0(R) with Subdweller Machine Gun Performance ------------- Evolutions (0) 0 Regions Visited (2) 400 Robots Destroyed (32) 160 Value Destroyed (877) 877 Prototype IDs (4) 80 Alien Tech Used (0) 0 Bonus (-19) -19 TOTAL SCORE: 1498 Bonus ------- Friendly Fire -19 Cogmind --------- Core Integrity 0/250 Matter 199/300 Energy 63/200 System Corruption 1% Temperature Cool (0) Movement Core (1550) Ox30 Location -10/Subcaves Parts ------- > --- POWER (1) -------- Subdweller Power Source > --- PROPULSION (2) --- (None) > --- UTILITY (2) ------ Huge Storage Unit > --- WEAPON (2) ------- Subdweller Beam Cannon > --- INVENTORY (25) --- Subdweller Power Source Wheel Wheel Disposable Heat Sink Medium Storage Unit Humpback High-capacity Matter Pod (65) High-capacity Matter Pod (0) Subdweller Optics Subdweller Optics Scrap Shield Scrap Shield EM Pulse Gun Subdweller Laser Datajack Multitool Hammer Peak State ------------ > --- POWER ------------ Ion Engine > --- PROPULSION ------- Light Treads Wheel > --- UTILITY ---------- Huge Storage Unit Seismic Detector > --- WEAPON ----------- Light Cannon Subdweller Shrapnel Launcher > --- INVENTORY -------- Ion Engine Subdweller Power Source Wheel Wheel Disposable Heat Sink Medium Storage Unit Humpback High-capacity Matter Pod High-capacity Matter Pod Subdweller Optics Scrap Shield Scrap Shield EM Pulse Gun EM Pulse Gun Subdweller Laser Subdweller Beam Cannon Datajack Multitool Hammer [Rating: 11] Favorites ----------- Power Ion Engine Engine Ion Engine Propulsion Light Treads Treads Light Treads Wheel Wheel Utility Seismic Detector Device Seismic Detector Storage Huge Storage Unit Weapon Light Cannon Energy Gun Medium Laser Energy Cannon Subdweller Beam Cannon Ballistic Gun Light Assault Rifle Ballistic Cannon Light Cannon Launcher Grenade Launcher Impact Weapon Hammer Build | -11 -10 -10 ------- Run | Yrd Mat Sub Slots Evolved . | . . . Power . | . . . Propulsion . | . . . Utility . | . . . Weapon . | . . . Parts Attached 23 | 8 10 5 Power 4 | 1 1 2 Engine 4 | 1 1 2 Core . | . . . Reactor . | . . . Propulsion 5 | 2 3 . Treads 2 | 1 1 . Leg . | . . . Wheel 3 | 1 2 . Hover . | . . . Flight . | . . . Utility 5 | 3 2 . Device 1 | 1 . . Storage 4 | 2 2 . Processor . | . . . Hackware . | . . . Protection . | . . . Artifact . | . . . Weapon 9 | 2 4 3 Energy Gun 3 | 2 1 . Energy Cannon 1 | . . 1 Ballistic Gun 1 | . 1 . Ballistic Cannon 1 | . 1 . Launcher 2 | . . 2 Special Weapon . | . . . Impact Weapon 1 | . 1 . Slashing Weapon . | . . . Piercing Weapon . | . . . Special Melee Weapon . | . . . Unidentified Prototypes . | . . . Parts Lost 9 | . 1 8 Power 2 | . 1 1 Propulsion 2 | . . 2 Utility 1 | . . 1 Weapon 4 | . . 4 Highest Loss Streak 7 | . 1 7 To Critical Strikes 1 | . . 1 Average Backups 12 | 3 8 14 Power 1 | . 1 1 Propulsion 1 | 1 2 2 Utility 4 | . 1 5 Weapon 3 | . 2 4 Tool/Special . | . . . Unused Backups 16 | . 1 15 Power 2 | . 1 1 Propulsion 2 | . . 2 Utility 9 | . . 9 Weapon 1 | . . 1 Tool/Special 2 | . . 2 Average Slot Usage (%) 99 | . 100 99 Engine 13 | . 14 13 Treads 13 | . 14 13 Wheel 13 | . 14 13 Device 14 | . 14 14 Storage 14 | . 14 14 Energy Gun 5 | . 16 . Ballistic Gun 1 | . 5 . Ballistic Cannon 10 | . 3 13 Launcher 2 | . . 3 Impact Weapon 7 | . 1 10 Peak Build Rating 11 | 7 8 11 Average Rating 8 | 4 7 8 On Entrance 5 | . 7 8 Avg Prop Armor Cover (%) 11 | 14 12 11 Naked Turns . | . . . Heaviest Build 97 | 13 91 97 Greatest Support 20 | 20 20 20 Greatest Overweight (x) 9 | . 9 9 Average Overweight (x) 4 | . . 8 Largest Inventory Capacity 25 | 8 25 25 Average Capacity 18 | 5 9 23 Most Carried 24 | 5 11 24 Average Carried 13 | 4 8 15 Final Capacity 25 | 8 10 25 Final Carried 20 | 4 10 20 Class Distribution -------------------- 100% | Mutant Dominant Class ---------------- Mutant | -10/Materials Mutant | -10/Subcaves Resources | -11 -10 -10 ----------- Run | Yrd Mat Sub Matter Collected 1519 | 280 562 677 Remotely . | . . . Salvage Created 1193 | 169 729 295 Parts 61 | 9 31 21 Haulers Intercepted 2 | . 2 . Recyclers Shooed 3 | . 3 . Parts Field Recycled . | . . . Retrieved Matter . | . . . Parts Self-Destructed 3 | . . 3 Prevented . | . . . Parts Restored . | . . . Kills | -11 -10 -10 ------- Run | Yrd Mat Sub Combat Hostiles Destroyed 21 | . 8 13 Melee 1 | . 1 . Guns 6 | . 6 . Cannons 1 | . . 1 AOE 12 | . . 12 Classes Destroyed 6 | 2 3 1 Worker 3 | . 3 . Tunneler 3 | 3 . . Hauler 2 | . 2 . Recycler 3 | 1 2 . Grunt 8 | . 8 . Subdweller 13 | . . 13 Best Kill Streak 5 | 2 5 3 Combat Bots Only 3 | . 2 3 Max Kills in Single Turn 2 | 1 2 2 Gunslinging . | . . . Exploded 2 | . . 2 Melee 1 | . 1 . Uniques/NPCs Destroyed . | . . . Combat | -11 -10 -10 -------- Run | Yrd Mat Sub Hostile Shots Fired 86 | . 43 43 Missed 19 | . 7 12 Hits 67 | . 36 31 Projectile 67 | . 36 31 AOE 6 | . . 6 Critical Strikes 3 | . 2 1 Damage Taken 1339 | . 455 884 Core 260 | . 85 175 Absorbed by Shields . | . . . Core Remaining (%) 100 | 100 . . Volleys Fired 109 | 18 49 42 Largest 2 | 1 2 2 Hottest 80 | 50 70 80 Shots Fired 165 | 18 93 54 Gun 116 | 18 92 6 Cannon 16 | . 1 15 Launcher 33 | . . 33 Special . | . . . Kinetic 69 | . 47 22 Thermal 63 | 18 44 1 Explosive 25 | . . 25 Electromagnetic 8 | . 2 6 Robot Hit Streak 12 | 8 12 11 Robot Miss Streak 3 | 1 3 2 Penetration Max . | . . . Secondary Targets . | . . . Shots Hit Robots 114 | 15 70 29 Core Hits 59 | 5 31 23 Critical Kills . | . . . Critical Parts Destroyed . | . . . Critical Strikes 3 | 2 1 . Burn 3 | 2 1 . Melee Attacks 37 | . 5 32 Impact 37 | . 5 32 Slashing . | . . . Piercing . | . . . Sneak Attacks . | . . . Combat Hostiles . | . . . Follow-up Attacks . | . . . Damage Inflicted 2826 | 187 818 1821 Guns 893 | 187 663 43 Cannons 170 | . 19 151 Explosions 1627 | . . 1627 Melee 136 | . 136 . Ramming . | . . . Kinetic 1086 | . 285 801 Thermal 718 | 187 397 134 Explosive 843 | . . 843 Electromagnetic 43 | . . 43 Impact 136 | . 136 . Slashing . | . . . Piercing . | . . . Highest Corruption 1 | . 1 1 Average Corruption 1 | . 1 1 Corruption Purged . | . . . Corruption Blocked . | . . . Effects 23 | . 3 20 Message Errors 3 | . . 3 Matter Fused 7 | . 1 6 Heat Flow Errors 6 | . . 6 Energy Discharges 2 | . 1 1 Data Loss (minor) 1 | . . 1 Data Loss (major) 2 | . . 2 Misfires 2 | . 1 1 Overload Shots . | . . . Overflow Damage 14 | . 14 . Projectiles . | . . . Explosions . | . . . Melee 14 | . 14 . Knockbacks 1 | . 1 . Impact . | . . . Kinetic 1 | . 1 . Secondary . | . . . Self-Inflicted Damage . | . . . Shots . | . . . Rammed . | . . . Targets Rammed . | . . . Kicked . | . . . Crushed . | . . . Highest Temperature 256 | 80 256 230 Average Temperature 66 | 35 66 110 Received Heat Transfer 327 | . 300 27 Effects 1 | . 1 . Energy Bleed 1 | . 1 . Siege Activations . | . . . Martial Activations . | . . . Shielding Activations . | . . . Robots Disrupted . | . . . Combat Hostiles . | . . . Robots Corrupted 1 | . 1 . Combat Hostiles 1 | . 1 . Parts Fried 2 | . 2 . Impact Corruptions 1 | . 1 . Robots Melted . | . . . Combat Hostiles . | . . . Parts Melted 5 | 2 3 . Heat Transferred 2048 | 703 1258 87 Parts Sabotaged . | . . . Parts Stolen . | . . . Parts Stripped . | . . . Power Chain Reactions 1 | . . 1 Alert | -11 -10 -10 ------- Run | Yrd Mat Sub Maximum Alert Level . | . . . Low Security (%) 100 | 100 100 . Level 1 . | . . . Level 2 . | . . . Level 3 . | . . . Level 4 . | . . . Level 5 . | . . . High Security . | . . . Max Security . | . . . Peak Influence 107 | 5 107 . Initial . | . . . Average 25 | 1 28 . Influence Increases 316 | 20 296 . Destroy 0b10 Robot/C 160 | . 160 . Destroy 0b10 Robot/NC 55 | 20 35 . Destroy Leader 44 | . 44 . Successful Hack 27 | . 27 . Lose Combat Pursuer 30 | . 30 . Influence Decreases 316 | 20 269 27 Entered New Map 14 | . . 14 Time Decay 292 | 20 259 13 Lost Part 10 | . 10 . Squads Dispatched 1 | . 1 . Investigation 1 | . 1 . Extermination . | . . . Reinforcement . | . . . Assault . | . . . Garrison . | . . . Intercept . | . . . Searches Triggered . | . . . Construction Impeded . | . . . Haulers Reinforced . | . . . Active Scanning Responses . | . . . Cargo Convoy Interrupts . | . . . Stealth | -11 -10 -10 --------- Run | Yrd Mat Sub Distress Signals . | . . . Communications Jammed . | . . . Distress Signals . | . . . Times Spotted 33 | . 18 15 Peak Tracking Total 3 | . 2 3 Tactical Retreats 2 | . 2 . Traps | -11 -10 -10 ------- Run | Yrd Mat Sub Traps Triggered 2 | . 2 . Indirectly . | . . . Trap Hack Attempts . | . . . Triggered . | . . . Disarmed . | . . . Reprogrammed . | . . . Reused . | . . . Traps Extracted . | . . . Installed . | . . . Triggered . | . . . Machines | -11 -10 -10 ---------- Run | Yrd Mat Sub Machines Disabled . | . . . Max in Single Turn . | . . . Machines Repaired . | . . . Machines Dismantled . | . . . Machines Sabotaged . | . . . Overloaded Fab Kills . | . . . Hacking | -11 -10 -10 --------- Run | Yrd Mat Sub Machines Accessed 8 | . 8 . Terminals 8 | . 8 . Fabricators . | . . . Repair Stations . | . . . Recycling Units . | . . . Scanalyzers . | . . . Garrison Access . | . . . Total Hacks 18 | . 18 . Successful 12 | . 12 . Failed 5 | . 5 . Catastrophic 1 | . 1 . Database Lockouts 1 | . 1 . Manual 14 | . 14 . Terminals 18 | . 18 . Fabricators . | . . . Repair Stations . | . . . Recycling Units . | . . . Scanalyzers . | . . . Garrison Access . | . . . Terminal Hacks 7 | . 7 . Robot Analysis 1 | . 1 . Prototype ID Bank 2 | . 2 . Terminal Index 1 | . 1 . Locate Traps 2 | . 2 . Zone Layout 1 | . 1 . Fabricator Hacks . | . . . Repair Station Hacks . | . . . Recycling Unit Hacks . | . . . Scanalyzer . | . . . Garrison Access Hacks . | . . . Unauthorized Hacks 5 | . 5 . Terminals 5 | . 5 . Botnet 4 | . 4 . Operators 1 | . 1 . Fabricators . | . . . Repair Stations . | . . . Recycling Units . | . . . Scanalyzers . | . . . Garrison Access . | . . . Data Cores Recovered . | . . . Used . | . . . Hacking Detections 3 | . 3 . Full Trace Events . | . . . Feedback Events . | . . . Feedback Blocked . | . . . Robot Schematics Acquired . | . . . Robots Built . | . . . Authchips . | . . . Time . | . . . Total Robot Build Rating . | . . . Part Schematics Acquired . | . . . Parts Built . | . . . Authchips . | . . . Time . | . . . Total Part Build Rating . | . . . Part Studies Acquired . | . . . Parts Repaired . | . . . Time . | . . . Parts Recycled . | . . . Recycled Matter . | . . . Retrieved Matter . | . . . Retrieved Components . | . . . Parts Scanalyzed . | . . . Part Schematics Acquired . | . . . Parts Damaged . | . . . Bothacking | -11 -10 -10 ------------ Run | Yrd Mat Sub Used RIF Installer . | . . . Robots Hacked . | . . . Non-combat . | . . . Combat . | . . . Robot Hacks Applied . | . . . Relay Couplers Released . | . . . Fabnet Peak Effective % . | . . . Robots Rewired . | . . . Allies Hacked . | . . . Hacks Repelled . | . . . Allies | -11 -10 -10 -------- Run | Yrd Mat Sub Total Allies . | . . . Largest Group . | . . . Highest-Rated Group . | . . . Highest-Rated Ally . | . . . Total Orders . | . . . Ally Attacks . | . . . Total Damage . | . . . Kills . | . . . Allies Corrupted . | . . . Allies Melted . | . . . Intel | -11 -10 -10 ------- Run | Yrd Mat Sub Active Infowar (turns) 3326 | 27 1081 2218 Seismic 3326 | 27 1081 2218 Robot Analysis Total 1 | . 1 . Derelict Logs Recovered 2 | . . 2 Drone Launches . | . . . Drone Recoveries . | . . . Exploration | -11 -10 -10 ------------- Run | Yrd Mat Sub Turns Passed 3452 | 152 1081 2219 Spaces Moved 1767 | 100 765 902 Core 3 | 3 . . Treads 37 | 1 34 2 Legs . | . . . Wheels 1727 | 96 731 900 Hover . | . . . Flight . | . . . Fastest Speed 50 | 50 95 110 Average Speed 154 | 99 104 203 Slowest Speed 240 | 160 215 240 Overloaded Moves . | . . . Propulsion Burnouts . | . . . Robots Hopped . | . . . Potential Cave-ins . | . . . Cave-ins Triggered . | . . . Exploration Rate (%) 48 | 3 95 46 Regions Visited 2 Branch Regions 1 Pre-discovered Areas 2 | . . 2 Known Exits Taken . | . . . Unknown Exits Taken 2 | 1 1 . Scrap Searched . | . . . Spaces Dug 1 | . . 1 Terrain Destroyed 199 | . . 199 Melee 1 | . . 1 Projectile . | . . . AOE 198 | . . 198 Terrain Rammed . | . . . Walls Destroyed . | . . . Machines Disabled . | . . . Actions | -11 -10 -10 --------- Run | Yrd Mat Sub Total 2255 | 131 956 1168 Wait 256 | . 110 146 Move 1765 | 99 764 902 Hop . | . . . Pick Up 33 | 5 10 18 Fast Attach 8 | 7 1 . Attach 5 | . 1 4 Detach . | . . . Swap 27 | 1 9 17 Drop 15 | 1 7 7 Fire 109 | 18 49 42 Melee 37 | . 5 32 Ram . | . . . Kick . | . . . Crush . | . . . Escape Stasis . | . . . Rewire . | . . . Trap . | . . . Miscellaneous . | . . . Route ------- -11/Scrapyard -10/Materials (discovered 5 exits: [*Mat x3] / [*Min] / [*Sub]) -10/Subcaves (discovered 1 exit: [*Scr]) History --------- Turn | Location | Event 11 | -11/Scrapyard | Discovered new exit (range 15) 153 | -11/Scrapyard | Entered Materials 284 | -10/Materials | Discovered new exit (range 11) 310 | -10/Materials | Build established: Mutant 620 | -10/Materials | Discovered new exit (range 16) 879 | -10/Materials | Discovered new exit (range 16) 980 | -10/Materials | Discovered new exit (range 6) 1060 | -10/Materials | Discovered new exit (range 16) 1156 | -10/Materials | Central database locked down 1234 | -10/Materials | Entered Subcaves 1234 | -10/Subcaves | Learned location of Zion (-6) 1235 | -10/Subcaves | Approached by a straggling Scientist 1237 | -10/Subcaves | Ambushed by Subdwellers from Twisted Machinery 1609 | -10/Subcaves | Met a Zionite searching for "candidates" 1678 | -10/Subcaves | Shifting Twisted Machinery released Piercing Trap 1681 | -10/Subcaves | Learned Materials stockpile data 1739 | -10/Subcaves | A swath of the cavern ceiling suddenly collapsed 2302 | -10/Subcaves | A swath of the cavern ceiling suddenly collapsed 2371 | -10/Subcaves | Shifting Twisted Machinery released Sub. Shrapnel Launcher 2381 | -10/Subcaves | Shifting Twisted Machinery released Mak. Laser 2776 | -10/Subcaves | Shifting Twisted Machinery released Scrap Shield 3422 | -10/Subcaves | Ambushed by Subdwellers from Twisted Machinery 3424 | -10/Subcaves | Core integrity fell below 50% 3435 | -10/Subcaves | Ambushed by Subdweller buried in earth 3438 | -10/Subcaves | Core integrity fell below 20% 3453 | -10/Subcaves | Destroyed by WH-JG0(R) with Subdweller Machine Gun Last Messages --------------- 03321_ Subatomizers dissect the Disposable Heat Sink, destroying it. 03335_ Subatomizers dissect the Sub. Machine Gun, destroying it. 03402_ System corrupted: Heat flow error (+213). 03422_ 9Y-QH2(R) emerges from the Twisted Machinery. 03425_ Wheel destroyed. 03428_ 9Y-QH2(R) destroyed. 03429_ R4-V56(R): "SLEEPOVER!" 03431_ Sub. Shrapnel Launcher destroyed. 03433_ Destroyed Scrap Shield. 03435_ Ion Engine destroyed. 03436_ WH-JG0(R): "ARGHSUB!" 03436_ Chain reaction triggered in Sub. Power Source. 03436_ B3-JWO(R) destroyed. 03443_ Lgt. Cannon destroyed. 03447_ Critical hit (Destroy). 03447_ Lgt. Treads destroyed. 03449_ EM Pulse Gun destroyed. 03452_ Seismic Detector destroyed. Map ----- +----------------------------------------------------+ | ???????????????##???#" & #### # " #?? | | ??????????????## ##?#" [ ##??####""###?? | | ??????????????# ###" #???????###???? | | ??????????????# ###?????????????? | | ??????????????## ## "#####???????????????? | | ??????????????## ### ##??????????????????? | | ??????????????# ##?# ##?????????????????? | | ??????????????## #?? #?????????????????? | | ???????????????# ### #?????????????????? | | ???????????????## #?????????????????? | | ????????????????## ???????????? | | ?????????????????## # ### ???????????? | | ???????????????##?### ###??# ??????????????? | | ???????????????# #??# #?????## ???????????????? | | ???????????????# ### #???????# ??????????????? | | ???????????????# ##??????????????????????? | | ???????????????# #??????????????????????? | | ???????????????# #??????????????????????? | | ???????????????# #??????????????????????? | | ???????????????# ##?????????????????????? | | ???????????????# # ####??????????????????? | | ???????????????# #??????????????????? | | ???????????????# # ##?????????????????? | | ???????????????# # #?????????????????? | | ???????????????# # #?????????????????? | | ??????????????# @ R #?????????????????? | | ??????????????# ##?????????????????? | | ??????????????# % #??????????????????? | | ??????????????### #??????????????????? | | ????????????????# #??????????????????? | | ????????????????### # ##??????????????????? | | ??????????????????### #???????????????????? | | ????????????????????# #???????????????????? | | ????????????????????## #???????????????????? | | ????????????????????? ???????????????????? | | ????????????????????? ???????????????????? | | ????????????????????? ??????????????????? | | ????????????????????? R ??????????????????? | | ????????????????????? % ?????????????????? | | ????????????????????? ???????????????????? | | ????????????????????? ?????????????????????? | | ???????????????????????????????????????????????? | | ???????????????????????????????????????????????? | | ???????????????????????????????????????????????? | | ???????????????????????????????????????????????? | | ???????????????????????????????????????????????? | | ???????????????????????????????????????????????? | | ???????????????????????????????????????????????? | | ???????????????????????????????????????????????? | | ???????????????????????????????????????????????? | +----------------------------------------------------+ Best States ------------- Heat Dissipation 25 Energy Generation 15 Energy Capacity 250 Matter Stores 300 Matter Capacity 300 Sight Range 16 Terrain Scan Density 10 Evasion (%) 41 Recoil Reduction 1 Item Schematics ----------------- None Robot Schematics ------------------ None Fabricated ------------ Nothing Repaired ---------- Nothing Studied --------- None Alien Tech Used ----------------- None Achievements -------------- None Challenges ------------ None Game ------ Seed BeamPlasmaTrident Manual? 0 Play Time 00:28:07 Cumulative 1376.3 hours Start 2026.08.30 @ 23:02:34 End 2026.08.30 @ 23:35:46 Sessions 1 Manual Loads 0 Difficulty Rogue Special Mode None Game No. 502 Rogue 502 Adventurer 0 Explorer 0 Win Type - Total 32 Types 16/2/8/0/0/0/6/0/0/0 Lore% 87 Gallery% 79 Achievement% 51 Wizard Run 0 Options --------- Layout 1 ASCII 0 Keyboard 0 Movement Vi Keybinds 0 Fullscreen 0 Font 14/CherryShadow Map View 64x42 Zoom Use 0% Tactical HUD 1 Map Filters NONE Filters NONE Steam 1 RUN: 6dafd115-486d-4a34-bcdf-58a77fbe38e7